Cogmind - Beta 14 @@@ ROGUE MODE // 2025.01.05 @ 12:41:32 Player: Darsidian Result: Self-destructed Performance ------------- Evolutions (0) 0 Regions Visited (5) 1000 Robots Destroyed (60) 300 Value Destroyed (1228) 1228 Prototype IDs (23) 460 Alien Tech Used (0) 0 Bonus (173) 173 TOTAL SCORE: 3161 Bonus ------- Follower Combat Kills 42 Registered with UFD 300 Friendly Fire -169 Cogmind --------- Core Integrity 22/250 Matter 208/300 Energy 208/290 System Corruption 0% Temperature Hot (276) Movement Rolling (145) Ox3 Location -7/Scraptown Parts ------- > --- POWER (1) -------- Improved Deuterium Engine > --- PROPULSION (2) --- Armored Huge Wheel > --- UTILITY (2) ------ Huge Storage Unit Layered Medium Armor Plating > --- WEAPON (2) ------- (None) > --- INVENTORY (25) --- Improved Deuterium Engine Myomer Leg Scrap Suit Improved Heat Sink Deep Structural Scanner Subdweller Optics 0b10 Decoder Chip [Scout] Advanced Melee Analysis Suite Microactuators Reaction Control System Authchip [Propulsion] Authchip [Propulsion] Heavy Machine Gun Advanced Assault Cannon CPS Tube (2) CPS Tube (2) Spear Vortex Trap DRS Beacon (Ready) Peak State ------------ > --- POWER ------------ Improved Deuterium Engine > --- PROPULSION ------- Armored Huge Wheel > --- UTILITY ---------- Huge Storage Unit Layered Medium Armor Plating > --- WEAPON ----------- Beamcaster Improved EM Pulse Cannon > --- INVENTORY -------- Improved Deuterium Engine Myomer Leg Armored Huge Wheel Scrap Suit Improved Heat Sink Deep Structural Scanner Subdweller Optics 0b10 Decoder Chip [Scout] Advanced Melee Analysis Suite Microactuators Reaction Control System Authchip [Propulsion] Authchip [Propulsion] Heavy Machine Gun Advanced Assault Cannon CPS Tube CPS Tube Spear Vortex Trap DRS Beacon [Rating: 35] Favorites ----------- Power Improved Deuterium Engine Engine Improved Deuterium Engine Power Core Light Nuclear Core Propulsion Compact Wheel Wheel Compact Wheel Utility Huge Storage Unit Device Improved Heat Sink Storage Huge Storage Unit Protection Scrap Shield Weapon Spear Energy Gun Beamcaster Energy Cannon Beam Cannon Ballistic Gun Barrage Gun Ballistic Cannon Battle Cannon Launcher Grenade Launcher Special Weapon Mining Laser Piercing Weapon Spear Special Melee Weapon Improved Datajack Build | -11 -10 -10 -10 -7 -7 ------- Run | Yrd Mat Min Sub Rec Scr Slots Evolved . | . . . . . . Power . | . . . . . . Propulsion . | . . . . . . Utility . | . . . . . . Weapon . | . . . . . . Parts Attached 89 | 7 8 . 43 13 18 Power 10 | 1 1 . 5 2 1 Engine 9 | 1 1 . 5 1 1 Core 1 | . . . . 1 . Reactor . | . . . . . . Propulsion 24 | 2 1 . 14 4 3 Treads . | . . . . . . Leg . | . . . . . . Wheel 24 | 2 1 . 14 4 3 Hover . | . . . . . . Flight . | . . . . . . Utility 17 | 2 2 . 6 4 3 Device 4 | 1 . . . 2 1 Storage 6 | 1 2 . 2 . 1 Processor . | . . . . . . Hackware . | . . . . . . Protection 7 | . . . 4 2 1 Artifact . | . . . . . . Weapon 38 | 2 4 . 18 3 11 Energy Gun 8 | . 3 . 4 . 1 Energy Cannon 2 | . 1 . . . 1 Ballistic Gun 8 | 2 . . 4 1 1 Ballistic Cannon 2 | . . . 1 . 1 Launcher 8 | . . . 6 . 2 Special Weapon 4 | . . . 3 . 1 Impact Weapon . | . . . . . . Slashing Weapon . | . . . . . . Piercing Weapon 4 | . . . . 2 2 Special Melee Weapon 2 | . . . . . 2 Unidentified Prototypes 2 | . 1 . . . 1 Parts Lost 10 | . . . 4 . 6 Power . | . . . . . . Propulsion 2 | . . . 1 . 1 Utility 1 | . . . 1 . . Weapon 7 | . . . 2 . 5 Highest Loss Streak 6 | . . . 1 . 6 To Critical Strikes 2 | . . . . . 2 Average Slot Usage (%) 91 | . 100 100 87 100 87 Engine 13 | . 14 14 14 9 13 Wheel 23 | . 28 28 27 28 17 Device 8 | . 14 14 . 6 14 Storage 10 | . 14 14 2 14 13 Protection 5 | . . . 13 7 . Energy Gun 10 | . 20 28 14 14 3 Ballistic Gun 3 | . 5 . 8 3 . Launcher 1 | . . . 3 . . Piercing Weapon 7 | . . . . 10 13 Special Melee Weapon 4 | . . . . . 10 Peak Build Rating 35 | 7 10 10 22 24 35 Average Rating 21 | 5 9 10 16 22 29 On Entrance 11 | . 7 10 10 17 24 Naked Turns . | . . . . . . Heaviest Build 101 | 13 92 92 100 101 100 Greatest Support 40 | 26 26 26 40 32 32 Greatest Overweight (x) 31 | . 3 3 4 3 31 Average Overweight (x) 2 | . 1 3 . 2 2 Largest Inventory Capacity 25 | 8 25 25 25 25 25 Average Capacity 19 | 6 15 25 8 25 24 Most Carried 25 | 5 15 15 19 21 25 Average Carried 16 | 1 12 15 6 18 23 Final Capacity 25 | 8 25 25 25 25 25 Final Carried 21 | 5 15 15 11 21 20 Class Distribution -------------------- 60% | Mutant 24% | Scavenger-Mutant 14% | Subdweller-Mutant Dominant Class ---------------- Mutant | -10/Materials Mutant | -10/Mines Subdweller-Mutant | -10/Subcaves Mutant | -7/Recycling Mutant | -7/Scraptown Resources | -11 -10 -10 -10 -7 -7 ----------- Run | Yrd Mat Min Sub Rec Scr Matter Collected 1735 | 296 228 28 779 294 110 Remotely . | . . . . . . Salvage Created 4642 | 114 314 99 813 3293 9 Parts 166 | 7 15 8 38 97 1 Haulers Intercepted 2 | . 2 . . . . Recyclers Shooed 16 | . . . . 16 . Parts Field Recycled . | . . . . . . Retrieved Matter . | . . . . . . Parts Self-Destructed 19 | . . . 19 . . Prevented . | . . . . . . Kills | -11 -10 -10 -10 -7 -7 ------- Run | Yrd Mat Min Sub Rec Scr Combat Hostiles Destroyed 29 | . 3 3 18 4 1 Melee 2 | . . . . 2 . Guns 21 | . 3 2 14 2 . AOE 6 | . . 1 4 . 1 Classes Destroyed 11 | 2 5 . 2 1 1 Worker 2 | . 1 1 . . . Tunneler 2 | 2 . . . . . Hauler 2 | . 2 . . . . Recycler 36 | 1 1 . . 34 . Operator 1 | . 1 . . . . Turret 1 | . . . 1 . . Swarmer 6 | . 2 3 1 . . Grunt 5 | . 1 1 3 . . Sentry 4 | . . . . 4 . Subdweller 14 | . . . 14 . . Federalist 1 | . . . . . 1 Best Kill Streak 7 | 2 2 3 4 7 1 Combat Bots Only 4 | . 2 3 4 1 1 Max Kills in Single Turn 3 | 1 1 2 3 1 1 Gunslinging 1 | . . . 1 . . Exploded 3 | . . 1 3 . 1 Melee 1 | . . . . 1 . Uniques/NPCs Destroyed . | . . . . . . Combat | -11 -10 -10 -10 -7 -7 -------- Run | Yrd Mat Min Sub Rec Scr Hostile Shots Fired 198 | . 11 11 60 45 71 Missed 75 | . 4 5 18 24 24 Damage Taken 2480 | . 60 90 1266 150 914 Core 228 | . 6 . 109 38 75 Absorbed by Shields . | . . . . . . Core Remaining (%) 100 | 100 . . . . . Volleys Fired 182 | 9 20 9 97 39 8 Largest 2 | 2 2 2 2 2 2 Hottest 144 | 40 90 90 114 103 144 Shots Fired 314 | 18 40 18 149 78 11 Gun 271 | 18 34 18 120 78 3 Cannon 12 | . 6 . 1 . 5 Launcher 14 | . . . 11 . 3 Special 17 | . . . 17 . . Kinetic 131 | 18 16 . 55 39 3 Thermal 124 | . 6 . 76 39 3 Explosive 7 | . . . 5 . 2 Electromagnetic 52 | . 18 18 13 . 3 Robot Hit Streak 21 | 5 6 5 21 7 8 Robot Miss Streak 4 | 3 2 4 4 4 1 Penetration Max . | . . . . . . Secondary Targets 4 | . . 1 3 . . Max Gunslinging Chain 1 | . . 1 1 . . Shots Hit Robots 208 | 11 25 8 71 84 9 Core Hits 108 | 4 10 4 43 42 5 Critical Kills . | . . . . . . Critical Parts Destroyed . | . . . . . . Critical Strikes 11 | . . . 5 6 . Burn 6 | . . . 4 2 . Destroy 1 | . . . 1 . . Impale 4 | . . . . 4 . Melee Attacks 49 | . . . . 45 4 Impact . | . . . . . . Slashing . | . . . . . . Piercing 47 | . . . . 45 2 Sneak Attacks 31 | . . . . 29 2 Combat Hostiles 2 | . . . . 2 . Follow-up Attacks . | . . . . . . Damage Inflicted 5596 | 148 376 234 1531 3039 268 Guns 2714 | 148 291 134 1285 815 41 Cannons 160 | . 85 . . . 75 Explosions 498 | . . 100 246 . 152 Melee 2224 | . . . . 2224 . Ramming . | . . . . . . Kinetic 1287 | 148 135 . 613 391 . Thermal 1204 | . 85 100 554 424 41 Explosive 398 | . . . 246 . 152 Electromagnetic 483 | . 156 134 118 . 75 Impact . | . . . . . . Slashing . | . . . . . . Piercing 2224 | . . . . 2224 . Highest Corruption . | . . . . . . Average Corruption . | . . . . . . Corruption Purged . | . . . . . . Corruption Blocked . | . . . . . . Overload Shots . | . . . . . . Overflow Damage 450 | . . 15 . 435 . Projectiles . | . . . . . . Explosions 15 | . . 15 . . . Melee 435 | . . . . 435 . Knockbacks . | . . . . . . Impact . | . . . . . . Kinetic . | . . . . . . Secondary . | . . . . . . Self-Inflicted Damage 109 | . . 40 62 . 7 Shots 6 | . . 2 3 . 1 Rammed . | . . . . . . Targets Rammed . | . . . . . . Kicked . | . . . . . . Crushed . | . . . . . . Highest Temperature 482 | . 108 132 44 482 315 Average Temperature 96 | . 33 40 18 159 130 Received Heat Transfer 186 | . 12 . 114 42 18 Effects 7 | . . . . 6 1 Energy Bleed 2 | . . . . 2 . Interference 3 | . . . . 3 . Damage (minor) 2 | . . . . 1 1 Siege Activations . | . . . . . . Robots Corrupted . | . . . . . . Combat Hostiles . | . . . . . . Parts Fried 1 | . 1 . . . . Impact Corruptions . | . . . . . . Robots Melted . | . . . . . . Combat Hostiles . | . . . . . . Parts Melted 1 | . . . 1 . . Heat Transferred 2481 | . 185 100 1258 888 50 Parts Sabotaged . | . . . . . . Parts Stolen . | . . . . . . Parts Stripped . | . . . . . . Power Chain Reactions 2 | . . 2 . . . Alert | -11 -10 -10 -10 -7 -7 ------- Run | Yrd Mat Min Sub Rec Scr Peak Influence 216 | 15 216 167 . 133 . Initial 14 | . 9 14 . . . Average 64 | 7 105 89 . 45 . Maximum Alert Level 1 | . 1 . . . . Low Security (%) 94 | 100 69 100 . 100 . Level 1 5 | . 30 . . . . Level 2 . | . . . . . . Level 3 . | . . . . . . Level 4 . | . . . . . . Level 5 . | . . . . . . High Security . | . . . . . . Max Security . | . . . . . . Squads Dispatched 2 | . 2 . . . . Investigation . | . . . . . . Extermination . | . . . . . . Reinforcement 2 | . 2 . . . . Assault . | . . . . . . Garrison . | . . . . . . Intercept . | . . . . . . Searches Triggered . | . . . . . . Construction Impeded . | . . . . . . Haulers Reinforced . | . . . . . . Active Scanning Responses . | . . . . . . Cargo Convoy Interrupts . | . . . . . . Stealth | -11 -10 -10 -10 -7 -7 --------- Run | Yrd Mat Min Sub Rec Scr Distress Signals . | . . . . . . Communications Jammed . | . . . . . . Distress Signals . | . . . . . . Times Spotted 69 | . 12 8 41 2 6 Peak Tracking Total 6 | . 4 3 6 1 6 Tactical Retreats 5 | . 2 . 3 . . Traps | -11 -10 -10 -10 -7 -7 ------- Run | Yrd Mat Min Sub Rec Scr Traps Triggered 2 | . . . 2 . . Indirectly . | . . . . . . Trap Hack Attempts . | . . . . . . Triggered . | . . . . . . Disarmed . | . . . . . . Reprogrammed . | . . . . . . Reused . | . . . . . . Traps Extracted . | . . . . . . Installed . | . . . . . . Triggered . | . . . . . . Most Traps Carried 1 | . . . . . 1 Machines | -11 -10 -10 -10 -7 -7 ---------- Run | Yrd Mat Min Sub Rec Scr Machines Disabled 3 | . . . 2 . 1 Max in Single Turn 1 | . . . 1 . 1 Machines Repaired . | . . . . . . Machines Dismantled . | . . . . . . Machines Sabotaged . | . . . . . . Overloaded Fab Kills . | . . . . . . Hacking | -11 -10 -10 -10 -7 -7 --------- Run | Yrd Mat Min Sub Rec Scr Machines Accessed 21 | . 4 . 1 8 8 Terminals 9 | . 3 . . 6 . Fabricators . | . . . . . . Repair Stations . | . . . . . . Recycling Units 3 | . 1 . . 2 . Scanalyzers . | . . . . . . Garrison Access . | . . . . . . Total Hacks 88 | . 7 . 5 22 54 Successful 72 | . 3 . 5 10 54 Failed 16 | . 4 . . 12 . Catastrophic 2 | . 1 . . 1 . Database Lockouts . | . . . . . . Manual 10 | . 2 . . 8 . Terminals 22 | . 6 . . 16 . Fabricators . | . . . . . . Repair Stations . | . . . . . . Recycling Units 7 | . 1 . . 6 . Scanalyzers . | . . . . . . Garrison Access . | . . . . . . Terminal Hacks 63 | . 2 . 5 2 54 Record 58 | . . . 5 . 53 Robot Analysis 1 | . 1 . . . . Prototype ID Bank 3 | . 1 . . 2 . Derelict Proto ID Bank 1 | . . . . . 1 Fabricator Hacks . | . . . . . . Repair Station Hacks . | . . . . . . Recycling Unit Hacks 5 | . 1 . . 4 . Report Inventory 3 | . 1 . . 2 . Retrieve Components 2 | . . . . 2 . Scanalyzer . | . . . . . . Garrison Access Hacks . | . . . . . . Unauthorized Hacks 4 | . . . . 4 . Terminals 3 | . . . . 3 . Botnet 3 | . . . . 3 . Fabricators . | . . . . . . Repair Stations . | . . . . . . Recycling Units 1 | . . . . 1 . Reject 1 | . . . . 1 . Scanalyzers . | . . . . . . Garrison Access . | . . . . . . Data Cores Recovered . | . . . . . . Used . | . . . . . . Hacking Detections 9 | . 3 . . 6 . Full Trace Events 2 | . . . . 2 . Feedback Events . | . . . . . . Feedback Blocked . | . . . . . . Robot Schematics Acquired . | . . . . . . Robots Built . | . . . . . . Authchips . | . . . . . . Time . | . . . . . . Total Robot Build Rating . | . . . . . . Part Schematics Acquired . | . . . . . . Parts Built . | . . . . . . Authchips . | . . . . . . Time . | . . . . . . Total Part Build Rating . | . . . . . . Parts Repaired . | . . . . . . Time . | . . . . . . Parts Recycled . | . . . . . . Recycled Matter . | . . . . . . Retrieved Matter . | . . . . . . Retrieved Components 10 | . . . . 10 . Parts Scanalyzed . | . . . . . . Part Schematics Acquired . | . . . . . . Parts Damaged . | . . . . . . Bothacking | -11 -10 -10 -10 -7 -7 ------------ Run | Yrd Mat Min Sub Rec Scr Used RIF Installer . | . . . . . . Robots Hacked 2 | . . . . . 2 Non-combat . | . . . . . . Combat 2 | . . . . . 2 Robot Hacks Applied 2 | . . . . . 2 parse_system 2 | . . . . . 2 Relay Couplers Released . | . . . . . . Fabnet Peak Effective % . | . . . . . . Robots Rewired . | . . . . . . Allies Hacked . | . . . . . . Hacks Repelled . | . . . . . . Allies | -11 -10 -10 -10 -7 -7 -------- Run | Yrd Mat Min Sub Rec Scr Total Allies 3 | . . 3 . . . Largest Group 3 | . . 3 1 . . Highest-Rated Group 40 | . . 40 16 . . Highest-Rated Ally 16 | . . 16 16 . . Total Orders . | . . . . . . Ally Attacks 23 | . . 18 5 . . Total Damage 238 | . . 163 75 . . Kills 6 | . . 6 . . . Allies Corrupted . | . . . . . . Allies Melted 1 | . . . 1 . . Intel | -11 -10 -10 -10 -7 -7 ------- Run | Yrd Mat Min Sub Rec Scr Robot Analysis Total 1 | . 1 . . . . Derelict Logs Recovered 8 | . . 3 3 . 2 Drone Launches . | . . . . . . Drone Recoveries . | . . . . . . Exploration | -11 -10 -10 -10 -7 -7 ------------- Run | Yrd Mat Min Sub Rec Scr Turns Passed 10292 | 111 530 716 3039 1682 4214 Spaces Moved 6999 | 72 374 476 2184 980 2913 Core 180 | 3 . . . . 177 Treads . | . . . . . . Legs . | . . . . . . Wheels 6819 | 69 374 476 2184 980 2736 Hover . | . . . . . . Flight . | . . . . . . Fastest Speed 50 | 50 90 135 95 130 50 Average Speed 129 | 88 107 135 114 143 139 Slowest Speed 1600 | 90 135 135 150 145 1600 Overloaded Moves . | . . . . . . Propulsion Burnouts . | . . . . . . Robots Hopped . | . . . . . . Cave-ins Triggered . | . . . . . . Exploration Rate (%) 68 | 4 55 84 76 99 94 Regions Visited 5 Branch Regions 4 Pre-discovered Areas 11 | . . 2 1 . 8 Known Exits Taken 1 | . . . 1 . . Unknown Exits Taken 4 | 1 1 1 . 1 . Scrap Searched 14 | . . 1 8 . 5 Spaces Dug 75 | . . . 66 1 8 Terrain Destroyed 126 | . . 7 110 1 8 Melee 1 | . . . . 1 . Projectile . | . . . . . . AOE 125 | . . 7 110 . 8 Terrain Rammed . | . . . . . . Walls Destroyed . | . . . . . . Machines Disabled . | . . . . . . Actions | -11 -10 -10 -10 -7 -7 --------- Run | Yrd Mat Min Sub Rec Scr Total 7801 | 97 459 531 2553 1106 3055 Wait 296 | 5 45 47 145 10 44 Move 6994 | 71 373 475 2183 979 2913 Hop . | . . . . . . Pick Up 87 | 5 9 . 23 11 39 Fast Attach 35 | 7 2 . 14 3 9 Attach 6 | . . . 1 . 5 Detach 1 | . . . . . 1 Swap 48 | . 6 . 28 10 4 Drop 86 | . 4 . 46 9 27 Fire 182 | 9 20 9 97 39 8 Melee 49 | . . . . 45 4 Ram . | . . . . . . Kick . | . . . . . . Crush . | . . . . . . Escape Stasis . | . . . . . . Rewire 1 | . . . . . 1 Trap . | . . . . . . Miscellaneous 16 | . . . 16 . . Route ------- -11/Scrapyard -10/Materials (discovered 2 exits: [*Min x2]) -10/Mines (discovered 4 exits: [*Mat x2] / [*Exi] / *Sub) -10/Subcaves (discovered 3 exits: [*Mat x2] / *Rec) -7/Recycling (discovered 2 exits: [*Fac] / *Scr) -7/Scraptown (discovered 2 exits: [*Fac x2]) History --------- Turn | Location | Event 4 | -11/Scrapyard | Discovered new exit (range 16) 112 | -11/Scrapyard | Entered Materials 181 | -10/Materials | Discovered new exit (range 12) 306 | -10/Materials | Build established: Mutant 431 | -10/Materials | Discovered new exit (range 7) 642 | -10/Materials | Entered Mines 644 | -10/Mines | Met a Derelict bent on vengeance 698 | -10/Mines | Assisted by bots powering up and referring to "LRC-V3" 707 | -10/Mines | Deemed a non-threat by the Exiles lab entrance 707 | -10/Mines | Discovered new exit (range 5) 919 | -10/Mines | Learned 4 Materials zone layouts 1022 | -10/Mines | Learned location of Mines (-9) 1175 | -10/Mines | Discovered new exit (range 13) 1200 | -10/Mines | Learned 2 Materials zone layouts 1301 | -10/Mines | Discovered new exit (range 6) 1315 | -10/Mines | Learned location of Storage (-7) 1316 | -10/Mines | Discovered new exit (range 7) 1358 | -10/Mines | Entered Subcaves 1358 | -10/Subcaves | Accompanied by 1 ally 1361 | -10/Subcaves | Ambushed by Subdwellers from Twisted Machinery 1367 | -10/Subcaves | Learned Materials security intel 1566 | -10/Subcaves | Discovered new exit (range 10) 1589 | -10/Subcaves | Ambushed by swarm of Subdwellers 1662 | -10/Subcaves | A swath of the cavern ceiling suddenly collapsed 2037 | -10/Subcaves | Shifting Twisted Machinery released Barrage Gun 2054 | -10/Subcaves | Shifting Twisted Machinery released Sub. Laser 2092 | -10/Subcaves | Visited Clippyterm 2095 | -10/Subcaves | Identified exit to Recycling 2095 | -10/Subcaves | Learned Research security intel 2245 | -10/Subcaves | Lost 3 allies 2433 | -10/Subcaves | Ambushed by Subdweller buried in earth 2433 | -10/Subcaves | Ambushed by Subdweller buried in earth 2743 | -10/Subcaves | Learned Materials stockpile data 2883 | -10/Subcaves | Build established: Subdweller-Mutant 3176 | -10/Subcaves | Shifting Twisted Machinery released Barrage Gun 3180 | -10/Subcaves | Learned Materials stockpile data 3211 | -10/Subcaves | Discovered new exit (range 10) 3441 | -10/Subcaves | Shifting Twisted Machinery released Sub. Laser 3524 | -10/Subcaves | A swath of the cavern ceiling suddenly collapsed 3528 | -10/Subcaves | Learned location of Zion (-6) 3528 | -10/Subcaves | Met a Zionite searching for "candidates" 4213 | -10/Subcaves | Build established: Scavenger-Mutant 4397 | -10/Subcaves | Entered Recycling 4648 | -7/Recycling | Build established: Mutant 5007 | -7/Recycling | Core integrity fell below 50% 5024 | -7/Recycling | Scanned before Scraplab entrance 5048 | -7/Recycling | Entered Scraplab 5414 | -7/Recycling | Discovered new exit (range 15) 5568 | -7/Recycling | Build established: Scavenger-Mutant 6076 | -7/Recycling | Discovered new exit (range 3) 6079 | -7/Recycling | Entered Scraptown 6586 | -7/Scraptown | Visited Spacefarers 6622 | -7/Scraptown | Visited Symbiants 6704 | -7/Scraptown | Visited Cyclists 6787 | -7/Scraptown | Visited Awakened 7034 | -7/Scraptown | Visited UFD Registry 7034 | -7/Scraptown | Registered with UFD as "Arcdriver" 7104 | -7/Scraptown | Visited Junk Cannon Lab 7115 | -7/Scraptown | Found Prototype Special Weapon 7115 | -7/Scraptown | Identified Junk Cannon 7208 | -7/Scraptown | Visited DA-N13 Charitable Foundation 7227 | -7/Scraptown | Found DCF Scrap (30 items) 7332 | -7/Scraptown | Visited Science Guys 7394 | -7/Scraptown | Visited Scrapoid Research Area 7518 | -7/Scraptown | Found Scrap Suit 7519 | -7/Scraptown | Build established: Mutant 7536 | -7/Scraptown | Discovered new exit (range 5) 7590 | -7/Scraptown | Visited Cartography Club 7910 | -7/Scraptown | Learned location of Warlord (-4) 7910 | -7/Scraptown | Learned 12 Materials zone layouts 7910 | -7/Scraptown | Learned 16 Materials zone layouts 7910 | -7/Scraptown | Learned 8 Factory zone layouts 7910 | -7/Scraptown | Learned 12 Factory zone layouts 7910 | -7/Scraptown | Learned 24 Factory zone layouts 7910 | -7/Scraptown | Learned 4 Storage zone layouts 7910 | -7/Scraptown | Learned 16 Upper Caves zone layouts 7910 | -7/Scraptown | Learned 8 Proximity Caves zone layouts 7910 | -7/Scraptown | Learned 24 Proximity Caves zone layouts 7910 | -7/Scraptown | Learned 4 Armory zone layouts 7910 | -7/Scraptown | Learned Storage emergency access door positions 7910 | -7/Scraptown | Learned location of 2 exits from Factory 7910 | -7/Scraptown | Learned location of 3 exits from Upper Caves 7926 | -7/Scraptown | Found Deep Structural Scanner 8065 | -7/Scraptown | Visited Observation Area 8142 | -7/Scraptown | Visited Derelict Rescue Squad 8154 | -7/Scraptown | Found DRS Beacon 8251 | -7/Scraptown | Visited Infowarlord's Domain 8330 | -7/Scraptown | Visited LU-1G1's Boring Crew 9200 | -7/Scraptown | Entered Cyclist Reading Room 9393 | -7/Scraptown | Discovered new exit (range 18) 9409 | -7/Scraptown | Scanned Subdweller tech in exchange for log data 9413 | -7/Scraptown | Learned location of Quarantine (-2) 9415 | -7/Scraptown | Learned location of Extension (-4) 9809 | -7/Scraptown | Visited Shadow of the Wyrm 10252 | -7/Scraptown | Attacked by Scraptown defenders 10293 | -7/Scraptown | Core integrity fell below 20% 10293 | -7/Scraptown | Self-destructed Last Messages --------------- 10268_ Machine disabled. 10268_ Imp. Datajack destroyed. 10272_ Sub. Shrapnel Launcher destroyed. 10276_ N3-7BB(g) destroyed. 10276_ Machine disabled. 10278_ Grenade Launcher destroyed. 10286_ 7A-RQT(E) heat short circuits Imp. Deuterium Engine. 10286_ Critical hit (Destroy). 10286_ Arm. Huge Wheel destroyed. 10287_ 7A-RQT(E) heat short circuits Ovr. Treads. 10288_ 7A-RQT(E) heat short circuits Ovr. Barrage Gun. 10289_ Penetrated by Slug. 10289_ Critical hit (Destroy). 10289_ Imp. EM Pulse Cannon destroyed. 10289_ Slug penetrates 7A-RQT(E). 10289_ 7A-RQT(E) destroyed. 10290_ Overheating: Beamcaster damaged (-35). 10290_ Beamcaster destroyed. 10292_ Slug penetrates Wall. 10292_ Penetrated by Slug. Map ----- +----------------------------------------------------+ | "## "????" "####??? | | =="## "????" "####??? | | "????" "####??? | | """""""""""""""""""""""" "## """""" "####??? | | """""""""""""""""""""""" "## "####??? | | #### ################"" "## """""""""####??? | | ###########"" "#################??? | | X"##########"" "## """"""""####??? | | "" "" ###########"" "## " " " "####??? | | "" "" X"##########"" "## "####??? | | " " ######### #"" "## &"####??? | | "" z [ &"####??? | | "" h"## ""####??? | | " " ######### #"" "## " " " "####??? | | "" "" ""##########"" "## """"""""####??? | | "" "" ###########"" "#################??? | | ""##########"" "#################??? | | ###########"" "#################??? | | #### ################" *!= "## #######??? | | """"""""""""""""""""""""=%[ "## ####?????? | | """"""""""""""""""""""""%= c ####?????? | | "## ####?????? | | "## ####?????? | | "##############?????? | | ##############?????? | | @ #############?????? | | """""""" """"""""""" " " E##############?????? | | ######## ########### #####; #####??????????????? | | ## ## ##; #####??????????????? | | ## # # ## ##; #############??????? | | ## # # ## ##; ;##############????? | | ""## # # ## ### ###############????? | | "## ####### ## ### ###############????? | | ""## ## ### ######"""######????? | | ""## # """ # ## ### # #????? | | ""## # "#" # ## ### E ## ????? | | ""## # """ # ############## # ????? | | ""## # # ############## # ????? | | ""######################### # ##????? | | ########################### ######"""""####????? | | ########################### ###############????? | | "##"""##"""##"""##"""##"|"# """"###########????? | | "##|""##" "##"""##""|##" # "" "###########????? | | "###########????? | | " "####???????????? | | !!/ """"####???????????? | | "##"""##"" ##"|"##!!%##""|## #########???????????? | | "##"""##"""##"""##"""##"""############???????????? | | ######################################???????????? | | ######################################???????????? | +----------------------------------------------------+ Best States ------------- Heat Dissipation 39 Energy Generation 18 Energy Capacity 290 Matter Stores 300 Matter Capacity 300 Sight Range 16 Terrain Scan Density 10 Armor Coverage 800 Evasion (%) 50 Authchip Count 2 Item Schematics ----------------- None Robot Schematics ------------------ None Fabricated ------------ Nothing Alien Tech Used ----------------- None Achievements -------------- None Challenges ------------ None Game ------ Seed ShockRegenerativeCyclogen Manual? 0 Play Time 01:59:42 Cumulative 124.8 hours Start 2025.01.05 @ 10:14:25 End 2025.01.05 @ 12:41:32 Sessions 1 Manual Loads 0 Difficulty Rogue Special Mode None Game No. 39 Rogue 39 Adventurer 0 Explorer 0 Win Type - Total 0 Types 0/0/0/0/0/0/0/0/0 Lore% 31 Gallery% 44 Achievement% 37 Wizard Run 0 Options --------- Layout 0 ASCII 0 Keyboard 0 Movement Mouse Keybinds 0 Fullscreen 1 Font 36/Smallcaps Map View 76x50 Zoom Use 0% Tactical HUD 1 Map Filters NONE Filters NONE Steam 1 RUN: 149e33c6-247f-4121-9f33-c962a5fa0b05